Workbook

Sheet Debiteuren
A1: Nr | B1: Naam | C1: Voorletters | D1: Adres | E1: Postcode en Plaats | F1: BTW nummer | G1: Betaaltermijn (dagen) | H1: Soort omzet
A2: 1 | B2: Contante Verkoop | G2: 30 | H2: Omzet NL
A3: 2 | B3: Alberts | C3: H.G. | D3: Voorbeeldlaan 1 | E3: 4895 KL aaaaaa | F3: NL45467431431 | G3: 30 | H3: Omzet NL
A4: 3 | B4: Janssen | C4: K. | D4: Voorbeeldlaan 2 | E4: 6191 MP aaaaaa | F4: NL14564215627 | G4: 30 | H4: Omzet NL
A5: 4 | B5: de Bruyne | C5: J.H.L.L | D5: Voorbeeldlaan 3 | E5: 4568 OP Antwerpen | F5: BE52541265148 | G5: 40 | H5: Omzet EU
A6: 5 | B6: Sterling | C6: W.T.P | D6: Voorbeeldlaan 4 | E6: FQH4+M5 Manchester | F6: UK78456932552 | G6: 40 | H6: Omzet EU
A7: 6 | B7: Lincon | C7: F.T.P | D7: Voorbeeldlaan 5 | E7: 10012 New York | G7: 15 | H7: Omzet buiten EU
A8: 7
A9: 8
A10: 9
A11: 10
A12: 11
A13: 12
A14: 13
A15: 14
A16: 15
A17: 16
A18: 17
A19: 18
A20: 19
A21: 20
A22: 21
A23: 22
A24: 23
A25: 24
A26: 25
A27: 26
A28: 27
A29: 28
A30: 29
A31: 30
A32: 31
A33: 32
A34: 33
A35: 34
A36: 35
A37: 36
A38: 37
A39: 38
A40: 39
A41: 40
A42: 41
A43: 42
A44: 43
A45: 44
A46: 45
A47: 46
A48: 47
A49: 48
A50: 49
A51: 50
A52: 51
A53: 52
A54: 53
A55: 54
A56: 55
A57: 56
A58: 57
A59: 58
A60: 59
A61: 60
A62: 61
A63: 62
A64: 63
A65: 64
A66: 65
A67: 66
A68: 67
A69: 68
A70: 69
A71: 70
A72: 71
A73: 72
A74: 73
A75: 74
A76: 75
A77: 76
A78: 77
A79: 78
A80: 79
A81: 80
A82: 81
A83: 82
A84: 83
A85: 84
A86: 85
A87: 86
A88: 87
A89: 88
A90: 89
A91: 90
A92: 91
A93: 92
A94: 93
A95: 94
A96: 95
A97: 96
A98: 97
A99: 98
A100: 99
A101: 100
A102: 101
A103: 102
A104: 103
A105: 104
A106: 105
A107: 106
A108: 107
A109: 108
A110: 109
A111: 110
A112: 111
A113: 112
A114: 113
A115: 114
A116: 115
A117: 116
A118: 117
A119: 118
A120: 119
A121: 120
A122: 121
A123: 122
A124: 123
A125: 124
A126: 125
A127: 126
A128: 127
A129: 128
A130: 129
A131: 130
A132: 131
A133: 132
A134: 133
A135: 134
A136: 135
A137: 136
A138: 137
A139: 138
A140: 139
A141: 140
A142: 141
A143: 142
A144: 143
A145: 144
A146: 145
A147: 146
A148: 147
A149: 148
A150: 149
A151: 150
A152: 151
A153: 152
A154: 153
A155: 154
A156: 155
A157: 156
A158: 157
A159: 158
A160: 159
A161: 160
A162: 161
A163: 162
A164: 163
A165: 164
A166: 165
A167: 166
A168: 167
A169: 168
A170: 169
A171: 170
A172: 171
A173: 172
A174: 173
A175: 174
A176: 175
A177: 176
A178: 177
A179: 178
A180: 179
A181: 180
A182: 181
A183: 182
A184: 183
A185: 184
A186: 185
A187: 186
A188: 187
A189: 188
A190: 189
A191: 190
A192: 191
A193: 192
A194: 193
A195: 194
A196: 195
A197: 196
A198: 197
A199: 198
A200: 199
... 301 more rows

Sheet Verkoop
A1: Verkoop | G1: BTW 0% | I1: BTW 9% | K1: BTW 21% | L1: Totaal
E2: Totale bedragen | F2: =IF(#REF!<#REF!,SUM(F7:F9974),"") ->  | G2: =IF(#REF!<#REF!,SUM(G7:G9974),"") ->  | H2: =IF(#REF!<#REF!,SUM(H7:H9974),"") ->  | I2: =IF(#REF!<#REF!,SUM(I7:I9974),"") ->  | J2: =IF(#REF!<#REF!,SUM(J7:J9974),"") ->  | K2: =IF(#REF!<#REF!,SUM(K7:K9974),"") ->  | L2: =IF(#REF!<#REF!,SUM(L7:L9974),"") -> 
E3: Subtotalen | F3: =IF(#REF!<#REF!,SUBTOTAL(9,F7:F9974),"") ->  | G3: =IF(#REF!<#REF!,SUBTOTAL(9,G7:G9974),"") ->  | H3: =IF(#REF!<#REF!,SUBTOTAL(9,H7:H9974),"") ->  | I3: =IF(#REF!<#REF!,SUBTOTAL(9,I7:I9974),"") ->  | J3: =IF(#REF!<#REF!,SUBTOTAL(9,J7:J9974),"") ->  | K3: =IF(#REF!<#REF!,SUBTOTAL(9,K7:K9974),"") ->  | L3: =IF(#REF!<#REF!,SUBTOTAL(9,L7:L9974),"") -> 
E5: =SUM(E7:E9974) -> 19707 | G5: BTW 0% | I5: BTW 9% | K5: BTW 21%
A6: Datum | B6: Soort | C6: Factuurnummer | D6: Klantnaam | E6: Totaal excl. BTW | F6: Bedrag excl. | G6: BTW | H6: Bedrag excl. | I6: BTW | J6: Bedrag excl. | K6: BTW | L6: Totaal | M6: Soort omzet | N6: Vervaldatum | O6: Betaald | P6: Per bank / kas | Q6: Betaaldatum | R6: Bijzonderheden
A7: 2019-01-01 | B7: Factuur | C7: 2019001 | D7: H.G. Alberts | E7: =F7+H7+J7 -> 50 | F7: 0 | G7: =F7*0 -> 0 | H7: 50 | I7: =H7*0.09 -> 4.5 | J7: 0 | K7: =J7*0.21 -> 0 | L7: =SUM(F7:K7) -> 54.5 | M7: Omzet NL | N7: 2019-01-31 | O7: Openstaand | S7: =CEILING(MONTH(A7)/3,1) -> 1 | T7: =CEILING(MONTH(A7),1) -> 1
A8: 2019-01-01 | B8: Factuur | C8: 2019002 | D8: H.G. Alberts | E8: 181 | F8: 0 | G8: 0 | H8: 75 | I8: =H8*0.09 -> 6.75 | J8: 106 | K8: 22.26 | L8: 210.01 | M8: Omzet NL | N8: 2019-01-31 | O8: Openstaand | S8: 1 | T8: 1
A9: 2019-04-01 | B9: Factuur | C9: 2019003 | D9: H.G. Alberts | E9: 181 | F9: 0 | G9: 0 | H9: 75 | I9: 6.75 | J9: 106 | K9: 22.26 | L9: 210.01 | M9: Omzet NL | N9: 2019-05-01 | O9: Openstaand | S9: 2 | T9: 4
A10: 2019-07-01 | B10: Factuur | C10: 2019004 | D10: H.G. Alberts | E10: 6100 | F10: 0 | G10: 0 | H10: 500 | I10: 45 | J10: 5600 | K10: 1176 | L10: 7321 | M10: Omzet NL | N10: 2019-07-31 | O10: Openstaand | S10: =#REF! ->  | T10: 7
A11: 2019-10-01 | B11: Factuur | C11: 2019005 | D11: H.G. Alberts | E11: 5575 | F11: 0 | G11: 0 | H11: 475 | I11: 42.75 | J11: 5100 | K11: 1071 | L11: 6688.75 | M11: Omzet NL | N11: 2019-10-31 | O11: Openstaand | S11: 4 | T11: 10
A12: 2019-10-01 | B12: Factuur | C12: 2019006 | D12: J.H.L.L de Bruyne | E12: 5575 | F12: 5575 | G12: 0 | H12: 0 | I12: 0 | J12: 0 | K12: 0 | L12: 5575 | M12: Omzet EU | N12: 2019-11-10 | O12: Openstaand | S12: 4 | T12: 10
A13: 2019-10-10 | B13: Factuur | C13: 2019007 | D13: H.G. Alberts | E13: 675 | F13: 0 | G13: 0 | H13: 300 | I13: 27 | J13: 375 | K13: 78.75 | L13: =SUM(F13:K13) -> 780.75 | M13: Omzet NL | N13: 2019-01-31 | O13: Openstaand | S13: 4 | T13: 10
A14: 2019-11-01 | B14: Factuur | C14: 2019008 | D14: H.G. Alberts | E14: 700 | F14: 0 | G14: 0 | H14: 300 | I14: 27 | J14: 400 | K14: 84 | L14: 811 | M14: Omzet NL | N14: 2019-01-31 | O14: Openstaand | S14: 4 | T14: 11
A15: 2018-12-17 | B15: Factuur | C15: 2019009 | D15: H.G. Alberts | E15: 225 | F15: 0 | G15: 0 | H15: 0 | I15: 0 | J15: 225 | K15: 47.25 | L15: =SUM(F15:K15) -> 272.25 | M15: Omzet NL | N15: 2019-01-16 | O15: Openstaand | S15: 4 | T15: 12
A16: 2019-01-01 | B16: Factuur | C16: 20190010 | D16: H.G. Alberts | E16: 0 | F16: 0 | H16: 50 | J16: 150 | M16: Omzet NL | N16: 2019-01-31 | O16: Openstaand | S16: 1 | T16: 1
A17: 2019-01-01 | B17: Factuur | C17: 20190011 | D17: H.G. Alberts | E17: 222.5 | F17: 20 | G17: 0 | H17: 60 | I17: 5.4 | J17: 142.5 | K17: 29.925 | L17: 257.825 | M17: Omzet NL | N17: 2019-01-31 | O17: Openstaand | S17: 1 | T17: 1
A18: 2019-01-01 | B18: Factuur | C18: 20190012 | D18: H.G. Alberts | E18: 222.5 | F18: 20 | G18: 0 | H18: 60 | I18: 5.4 | J18: 142.5 | K18: 29.925 | L18: 257.825 | M18: Omzet NL | N18: 2019-01-31 | O18: Openstaand | S18: 1 | T18: 1
E19: 0 | G19: 0 | I19: 0 | K19: 0 | L19: 0 | S19: 1 | T19: 1
E20: 0 | G20: 0 | I20: 0 | K20: 0 | L20: 0 | S20: 1 | T20: 1
E21: 0 | G21: 0 | I21: 0 | K21: 0 | L21: 0 | S21: 1 | T21: 1
E22: 0 | G22: 0 | I22: 0 | K22: 0 | L22: 0 | S22: 1 | T22: 1
E23: 0 | G23: 0 | I23: 0 | K23: 0 | L23: 0 | S23: 1 | T23: 1
E24: 0 | G24: 0 | I24: 0 | K24: 0 | L24: 0 | S24: 1 | T24: 1
E25: 0 | G25: 0 | I25: 0 | K25: 0 | L25: 0 | S25: 1 | T25: 1
E26: 0 | G26: 0 | I26: 0 | K26: 0 | L26: 0 | S26: 1 | T26: 1
E27: 0 | G27: 0 | I27: 0 | K27: 0 | L27: 0 | S27: 1 | T27: 1
E28: 0 | G28: 0 | I28: 0 | K28: 0 | L28: 0 | S28: 1 | T28: 1
E29: 0 | G29: 0 | I29: 0 | K29: 0 | L29: =SUM(F29:K29) -> 0 | S29: 1 | T29: 1
E30: 0 | G30: 0 | I30: 0 | K30: 0 | L30: 0 | S30: 1 | T30: 1
E31: 0 | G31: 0 | I31: 0 | K31: 0 | L31: 0 | S31: 1 | T31: 1
E32: 0 | G32: 0 | I32: 0 | K32: 0 | L32: 0 | S32: 1 | T32: 1
E33: 0 | G33: 0 | I33: 0 | K33: 0 | L33: 0 | S33: 1 | T33: 1
E34: 0 | G34: 0 | I34: 0 | K34: 0 | L34: 0 | S34: 1 | T34: 1
E35: 0 | G35: 0 | I35: 0 | K35: 0 | L35: 0 | S35: 1 | T35: 1
E36: 0 | G36: 0 | I36: 0 | K36: 0 | L36: 0 | S36: 1 | T36: 1
E37: 0 | G37: 0 | I37: 0 | K37: 0 | L37: 0 | S37: 1 | T37: 1
E38: 0 | G38: 0 | I38: 0 | K38: 0 | L38: 0 | S38: =CEILING(MONTH(A38)/3,1) -> 1 | T38: =CEILING(MONTH(A38),1) -> 1
E39: 0 | G39: 0 | I39: 0 | K39: 0 | L39: 0 | S39: 1 | T39: 1
E40: 0 | G40: 0 | I40: 0 | K40: 0 | L40: 0 | S40: 1 | T40: 1
E41: 0 | G41: 0 | I41: 0 | K41: 0 | L41: 0 | S41: 1 | T41: 1
E42: 0 | G42: 0 | I42: 0 | K42: 0 | L42: 0 | S42: 1 | T42: 1
E43: 0 | G43: 0 | I43: 0 | K43: 0 | L43: 0 | S43: 1 | T43: 1
E44: 0 | G44: 0 | I44: 0 | K44: 0 | L44: 0 | S44: 1 | T44: 1
E45: 0 | G45: 0 | I45: 0 | K45: 0 | L45: 0 | S45: 1 | T45: 1
E46: =F46+H46+J46 -> 0 | G46: 0 | I46: 0 | K46: 0 | L46: 0 | S46: 1 | T46: 1
E47: 0 | G47: =F47*0 -> 0 | I47: =H47*0.09 -> 0 | K47: =J47*0.21 -> 0 | L47: 0 | S47: 1 | T47: 1
E48: 0 | G48: 0 | I48: 0 | K48: 0 | L48: 0 | S48: 1 | T48: 1
E49: 0 | G49: 0 | I49: 0 | K49: 0 | L49: 0 | S49: 1 | T49: 1
E50: 0 | G50: 0 | I50: 0 | K50: 0 | L50: 0 | S50: 1 | T50: 1
E51: 0 | G51: 0 | I51: 0 | K51: 0 | L51: 0 | S51: 1 | T51: 1
E52: 0 | G52: 0 | I52: 0 | K52: 0 | L52: 0 | S52: 1 | T52: 1
E53: 0 | G53: 0 | I53: 0 | K53: 0 | L53: 0 | S53: 1 | T53: 1
E54: 0 | G54: 0 | I54: 0 | K54: 0 | L54: 0 | S54: 1 | T54: 1
E55: 0 | G55: 0 | I55: 0 | K55: 0 | L55: 0 | S55: 1 | T55: 1
E56: 0 | G56: 0 | I56: 0 | K56: 0 | L56: 0 | S56: 1 | T56: 1
E57: 0 | G57: 0 | I57: 0 | K57: 0 | L57: 0 | S57: 1 | T57: 1
E58: 0 | G58: 0 | I58: 0 | K58: 0 | L58: 0 | S58: 1 | T58: 1
E59: 0 | G59: 0 | I59: 0 | K59: 0 | L59: 0 | S59: 1 | T59: 1
E60: 0 | G60: 0 | I60: 0 | K60: 0 | L60: 0 | S60: 1 | T60: 1
E61: 0 | G61: 0 | I61: 0 | K61: 0 | L61: 0 | S61: 1 | T61: 1
E62: 0 | G62: 0 | I62: 0 | K62: 0 | L62: 0 | S62: 1 | T62: 1
E63: 0 | G63: 0 | I63: 0 | K63: 0 | L63: 0 | S63: 1 | T63: 1
E64: 0 | G64: 0 | I64: 0 | K64: 0 | L64: 0 | S64: 1 | T64: 1
E65: 0 | G65: 0 | I65: 0 | K65: 0 | L65: =SUM(F65:K65) -> 0 | S65: 1 | T65: 1
E66: 0 | G66: 0 | I66: 0 | K66: 0 | L66: 0 | S66: 1 | T66: 1
E67: 0 | G67: 0 | I67: 0 | K67: 0 | L67: 0 | S67: 1 | T67: 1
E68: 0 | G68: 0 | I68: 0 | K68: 0 | L68: 0 | S68: 1 | T68: 1
E69: 0 | G69: 0 | I69: 0 | K69: 0 | L69: 0 | S69: 1 | T69: 1
E70: 0 | G70: 0 | I70: 0 | K70: 0 | L70: 0 | S70: 1 | T70: 1
E71: 0 | G71: 0 | I71: 0 | K71: 0 | L71: 0 | S71: 1 | T71: 1
E72: 0 | G72: 0 | I72: 0 | K72: 0 | L72: 0 | S72: 1 | T72: 1
E73: 0 | G73: 0 | I73: 0 | K73: 0 | L73: 0 | S73: 1 | T73: 1
E74: 0 | G74: 0 | I74: 0 | K74: 0 | L74: 0 | S74: 1 | T74: 1
E75: 0 | G75: 0 | I75: 0 | K75: 0 | L75: 0 | S75: 1 | T75: 1
E76: 0 | G76: 0 | I76: 0 | K76: 0 | L76: 0 | S76: 1 | T76: 1
E77: 0 | G77: 0 | I77: 0 | K77: 0 | L77: 0 | S77: 1 | T77: 1
E78: 0 | G78: 0 | I78: 0 | K78: 0 | L78: 0 | S78: 1 | T78: 1
E79: 0 | G79: 0 | I79: 0 | K79: 0 | L79: 0 | S79: 1 | T79: 1
E80: 0 | G80: 0 | I80: 0 | K80: 0 | L80: 0 | S80: 1 | T80: 1
E81: 0 | G81: 0 | I81: 0 | K81: 0 | L81: 0 | S81: 1 | T81: 1
E82: 0 | G82: 0 | I82: 0 | K82: 0 | L82: 0 | S82: 1 | T82: 1
E83: 0 | G83: 0 | I83: 0 | K83: 0 | L83: 0 | S83: 1 | T83: 1
E84: 0 | G84: 0 | I84: 0 | K84: 0 | L84: 0 | S84: 1 | T84: 1
E85: 0 | G85: 0 | I85: 0 | K85: 0 | L85: 0 | S85: 1 | T85: 1
E86: 0 | G86: 0 | I86: 0 | K86: 0 | L86: 0 | S86: 1 | T86: 1
E87: 0 | G87: 0 | I87: 0 | K87: 0 | L87: 0 | S87: 1 | T87: 1
E88: 0 | G88: 0 | I88: 0 | K88: 0 | L88: 0 | S88: 1 | T88: 1
E89: 0 | G89: 0 | I89: 0 | K89: 0 | L89: 0 | S89: 1 | T89: 1
E90: 0 | G90: 0 | I90: 0 | K90: 0 | L90: 0 | S90: 1 | T90: 1
E91: 0 | G91: 0 | I91: 0 | K91: 0 | L91: 0 | S91: 1 | T91: 1
E92: 0 | G92: 0 | I92: 0 | K92: 0 | L92: 0 | S92: 1 | T92: 1
E93: 0 | G93: 0 | I93: 0 | K93: 0 | L93: 0 | S93: 1 | T93: 1
E94: 0 | G94: 0 | I94: 0 | K94: 0 | L94: 0 | S94: 1 | T94: 1
E95: 0 | G95: 0 | I95: 0 | K95: 0 | L95: 0 | S95: 1 | T95: 1
E96: 0 | G96: 0 | I96: 0 | K96: 0 | L96: 0 | S96: 1 | T96: 1
E97: 0 | G97: 0 | I97: 0 | K97: 0 | L97: 0 | S97: 1 | T97: 1
E98: 0 | G98: 0 | I98: 0 | K98: 0 | L98: 0 | S98: 1 | T98: 1
E99: 0 | G99: 0 | I99: 0 | K99: 0 | L99: 0 | S99: 1 | T99: 1
E100: 0 | G100: 0 | I100: 0 | K100: 0 | L100: 0 | S100: 1 | T100: 1
E101: 0 | G101: 0 | I101: 0 | K101: 0 | L101: 0 | S101: 1 | T101: 1
E102: 0 | G102: 0 | I102: 0 | K102: 0 | L102: 0 | S102: =CEILING(MONTH(A102)/3,1) -> 1 | T102: =CEILING(MONTH(A102),1) -> 1
E103: 0 | G103: 0 | I103: 0 | K103: 0 | L103: 0 | S103: 1 | T103: 1
E104: 0 | G104: 0 | I104: 0 | K104: 0 | L104: 0 | S104: 1 | T104: 1
E105: 0 | G105: 0 | I105: 0 | K105: 0 | L105: 0 | S105: 1 | T105: 1
E106: 0 | G106: 0 | I106: 0 | K106: 0 | L106: 0 | S106: 1 | T106: 1
E107: 0 | G107: 0 | I107: 0 | K107: 0 | L107: 0 | S107: 1 | T107: 1
E108: 0 | G108: 0 | I108: 0 | K108: 0 | L108: 0 | S108: 1 | T108: 1
E109: 0 | G109: 0 | I109: 0 | K109: 0 | L109: 0 | S109: 1 | T109: 1
E110: =F110+H110+J110 -> 0 | G110: 0 | I110: 0 | K110: 0 | L110: 0 | S110: 1 | T110: 1
E111: 0 | G111: =F111*0 -> 0 | I111: =H111*0.09 -> 0 | K111: =J111*0.21 -> 0 | L111: 0 | S111: 1 | T111: 1
E112: 0 | G112: 0 | I112: 0 | K112: 0 | L112: 0 | S112: 1 | T112: 1
E113: 0 | G113: 0 | I113: 0 | K113: 0 | L113: 0 | S113: 1 | T113: 1
E114: 0 | G114: 0 | I114: 0 | K114: 0 | L114: 0 | S114: 1 | T114: 1
E115: 0 | G115: 0 | I115: 0 | K115: 0 | L115: 0 | S115: 1 | T115: 1
E116: 0 | G116: 0 | I116: 0 | K116: 0 | L116: 0 | S116: 1 | T116: 1
E117: 0 | G117: 0 | I117: 0 | K117: 0 | L117: 0 | S117: 1 | T117: 1
E118: 0 | G118: 0 | I118: 0 | K118: 0 | L118: 0 | S118: 1 | T118: 1
E119: 0 | G119: 0 | I119: 0 | K119: 0 | L119: 0 | S119: 1 | T119: 1
E120: 0 | G120: 0 | I120: 0 | K120: 0 | L120: 0 | S120: 1 | T120: 1
E121: 0 | G121: 0 | I121: 0 | K121: 0 | L121: 0 | S121: 1 | T121: 1
E122: 0 | G122: 0 | I122: 0 | K122: 0 | L122: 0 | S122: 1 | T122: 1
E123: 0 | G123: 0 | I123: 0 | K123: 0 | L123: 0 | S123: 1 | T123: 1
E124: 0 | G124: 0 | I124: 0 | K124: 0 | L124: 0 | S124: 1 | T124: 1
E125: 0 | G125: 0 | I125: 0 | K125: 0 | L125: 0 | S125: 1 | T125: 1
E126: 0 | G126: 0 | I126: 0 | K126: 0 | L126: 0 | S126: 1 | T126: 1
E127: 0 | G127: 0 | I127: 0 | K127: 0 | L127: 0 | S127: 1 | T127: 1
E128: 0 | G128: 0 | I128: 0 | K128: 0 | L128: 0 | S128: 1 | T128: 1
E129: 0 | G129: 0 | I129: 0 | K129: 0 | L129: =SUM(F129:K129) -> 0 | S129: 1 | T129: 1
E130: 0 | G130: 0 | I130: 0 | K130: 0 | L130: 0 | S130: 1 | T130: 1
E131: 0 | G131: 0 | I131: 0 | K131: 0 | L131: 0 | S131: 1 | T131: 1
E132: 0 | G132: 0 | I132: 0 | K132: 0 | L132: 0 | S132: 1 | T132: 1
E133: 0 | G133: 0 | I133: 0 | K133: 0 | L133: 0 | S133: 1 | T133: 1
E134: 0 | G134: 0 | I134: 0 | K134: 0 | L134: 0 | S134: 1 | T134: 1
E135: 0 | G135: 0 | I135: 0 | K135: 0 | L135: 0 | S135: 1 | T135: 1
E136: 0 | G136: 0 | I136: 0 | K136: 0 | L136: 0 | S136: 1 | T136: 1
E137: 0 | G137: 0 | I137: 0 | K137: 0 | L137: 0 | S137: 1 | T137: 1
E138: 0 | G138: 0 | I138: 0 | K138: 0 | L138: 0 | S138: 1 | T138: 1
E139: 0 | G139: 0 | I139: 0 | K139: 0 | L139: 0 | S139: 1 | T139: 1
E140: 0 | G140: 0 | I140: 0 | K140: 0 | L140: 0 | S140: 1 | T140: 1
E141: 0 | G141: 0 | I141: 0 | K141: 0 | L141: 0 | S141: 1 | T141: 1
E142: 0 | G142: 0 | I142: 0 | K142: 0 | L142: 0 | S142: 1 | T142: 1
E143: 0 | G143: 0 | I143: 0 | K143: 0 | L143: 0 | S143: 1 | T143: 1
E144: 0 | G144: 0 | I144: 0 | K144: 0 | L144: 0 | S144: 1 | T144: 1
E145: 0 | G145: 0 | I145: 0 | K145: 0 | L145: 0 | S145: 1 | T145: 1
E146: 0 | G146: 0 | I146: 0 | K146: 0 | L146: 0 | S146: 1 | T146: 1
E147: 0 | G147: 0 | I147: 0 | K147: 0 | L147: 0 | S147: 1 | T147: 1
E148: 0 | G148: 0 | I148: 0 | K148: 0 | L148: 0 | S148: 1 | T148: 1
E149: 0 | G149: 0 | I149: 0 | K149: 0 | L149: 0 | S149: 1 | T149: 1
E150: 0 | G150: 0 | I150: 0 | K150: 0 | L150: 0 | S150: 1 | T150: 1
E151: 0 | G151: 0 | I151: 0 | K151: 0 | L151: 0 | S151: 1 | T151: 1
E152: 0 | G152: 0 | I152: 0 | K152: 0 | L152: 0 | S152: 1 | T152: 1
E153: 0 | G153: 0 | I153: 0 | K153: 0 | L153: 0 | S153: 1 | T153: 1
E154: 0 | G154: 0 | I154: 0 | K154: 0 | L154: 0 | S154: 1 | T154: 1
E155: 0 | G155: 0 | I155: 0 | K155: 0 | L155: 0 | S155: 1 | T155: 1
E156: 0 | G156: 0 | I156: 0 | K156: 0 | L156: 0 | S156: 1 | T156: 1
E157: 0 | G157: 0 | I157: 0 | K157: 0 | L157: 0 | S157: 1 | T157: 1
E158: 0 | G158: 0 | I158: 0 | K158: 0 | L158: 0 | S158: 1 | T158: 1
E159: 0 | G159: 0 | I159: 0 | K159: 0 | L159: 0 | S159: 1 | T159: 1
E160: 0 | G160: 0 | I160: 0 | K160: 0 | L160: 0 | S160: 1 | T160: 1
E161: 0 | G161: 0 | I161: 0 | K161: 0 | L161: 0 | S161: 1 | T161: 1
E162: 0 | G162: 0 | I162: 0 | K162: 0 | L162: 0 | S162: 1 | T162: 1
E163: 0 | G163: 0 | I163: 0 | K163: 0 | L163: 0 | S163: 1 | T163: 1
E164: 0 | G164: 0 | I164: 0 | K164: 0 | L164: 0 | S164: 1 | T164: 1
E165: 0 | G165: 0 | I165: 0 | K165: 0 | L165: 0 | S165: 1 | T165: 1
E166: 0 | G166: 0 | I166: 0 | K166: 0 | L166: 0 | S166: =CEILING(MONTH(A166)/3,1) -> 1 | T166: =CEILING(MONTH(A166),1) -> 1
E167: 0 | G167: 0 | I167: 0 | K167: 0 | L167: 0 | S167: 1 | T167: 1
E168: 0 | G168: 0 | I168: 0 | K168: 0 | L168: 0 | S168: 1 | T168: 1
E169: 0 | G169: 0 | I169: 0 | K169: 0 | L169: 0 | S169: 1 | T169: 1
E170: 0 | G170: 0 | I170: 0 | K170: 0 | L170: 0 | S170: 1 | T170: 1
E171: 0 | G171: 0 | I171: 0 | K171: 0 | L171: 0 | S171: 1 | T171: 1
E172: 0 | G172: 0 | I172: 0 | K172: 0 | L172: 0 | S172: 1 | T172: 1
E173: 0 | G173: 0 | I173: 0 | K173: 0 | L173: 0 | S173: 1 | T173: 1
E174: =F174+H174+J174 -> 0 | G174: 0 | I174: 0 | K174: 0 | L174: 0 | S174: 1 | T174: 1
E175: 0 | G175: =F175*0 -> 0 | I175: =H175*0.09 -> 0 | K175: =J175*0.21 -> 0 | L175: 0 | S175: 1 | T175: 1
E176: 0 | G176: 0 | I176: 0 | K176: 0 | L176: 0 | S176: 1 | T176: 1
E177: 0 | G177: 0 | I177: 0 | K177: 0 | L177: 0 | S177: 1 | T177: 1
E178: 0 | G178: 0 | I178: 0 | K178: 0 | L178: 0 | S178: 1 | T178: 1
E179: 0 | G179: 0 | I179: 0 | K179: 0 | L179: 0 | S179: 1 | T179: 1
E180: 0 | G180: 0 | I180: 0 | K180: 0 | L180: 0 | S180: 1 | T180: 1
E181: 0 | G181: 0 | I181: 0 | K181: 0 | L181: 0 | S181: 1 | T181: 1
E182: 0 | G182: 0 | I182: 0 | K182: 0 | L182: 0 | S182: 1 | T182: 1
E183: 0 | G183: 0 | I183: 0 | K183: 0 | L183: 0 | S183: 1 | T183: 1
E184: 0 | G184: 0 | I184: 0 | K184: 0 | L184: 0 | S184: 1 | T184: 1
E185: 0 | G185: 0 | I185: 0 | K185: 0 | L185: 0 | S185: 1 | T185: 1
E186: 0 | G186: 0 | I186: 0 | K186: 0 | L186: 0 | S186: 1 | T186: 1
E187: 0 | G187: 0 | I187: 0 | K187: 0 | L187: 0 | S187: 1 | T187: 1
E188: 0 | G188: 0 | I188: 0 | K188: 0 | L188: 0 | S188: 1 | T188: 1
E189: 0 | G189: 0 | I189: 0 | K189: 0 | L189: 0 | S189: 1 | T189: 1
E190: 0 | G190: 0 | I190: 0 | K190: 0 | L190: 0 | S190: 1 | T190: 1
E191: 0 | G191: 0 | I191: 0 | K191: 0 | L191: 0 | S191: 1 | T191: 1
E192: 0 | G192: 0 | I192: 0 | K192: 0 | L192: 0 | S192: 1 | T192: 1
E193: 0 | G193: 0 | I193: 0 | K193: 0 | L193: =SUM(F193:K193) -> 0 | S193: 1 | T193: 1
E194: 0 | G194: 0 | I194: 0 | K194: 0 | L194: 0 | S194: 1 | T194: 1
E195: 0 | G195: 0 | I195: 0 | K195: 0 | L195: 0 | S195: 1 | T195: 1
E196: 0 | G196: 0 | I196: 0 | K196: 0 | L196: 0 | S196: 1 | T196: 1
E197: 0 | G197: 0 | I197: 0 | K197: 0 | L197: 0 | S197: 1 | T197: 1
E198: 0 | G198: 0 | I198: 0 | K198: 0 | L198: 0 | S198: 1 | T198: 1
E199: 0 | G199: 0 | I199: 0 | K199: 0 | L199: 0 | S199: 1 | T199: 1
E200: 0 | G200: 0 | I200: 0 | K200: 0 | L200: 0 | S200: 1 | T200: 1
E201: 0 | G201: 0 | I201: 0 | K201: 0 | L201: 0 | S201: 1 | T201: 1
... 1281 more rows

Sheet Verkoopfactuur
F1: =O23 -> Factuur | N1: =IF(O25="Omzet EU","Let op omzet EU, dus BTW verlegd!","")&IF(O25="Omzet buiten EU","Let op omzet buiten EU, dus 0% BTW!","") -> 
A4: =IF(#REF!<#REF!,#REF!,"") ->  | N4: Stap 1
A5: =IF(#REF!<#REF!,#REF!&" "&#REF!&"","") -> 
A6: =IF(#REF!<#REF!,#REF!,"") -> 
A7: =IF(#REF!<#REF!,#REF!,"") -> 
N8: Stap 2
A10: Factuuradres: | B10: =VLOOKUP(G12,klantenlijst,3,0)&" "&VLOOKUP(G12,klantenlijst,2,0) -> H.G. Alberts | E10: Datum: | G10: =O19 -> 2019-01-01
B11: =IF(#REF!<#REF!,VLOOKUP(G12,klantenlijst,4,0),"") ->  | E11: Factuurnr.: | G11: =O20 -> 20190012
B12: =IF(#REF!<#REF!,VLOOKUP(G12,klantenlijst,5,0),"") ->  | E12: Debiteuren nr.: | G12: =O21 -> 2
B13: =IF(#REF!<#REF!,VLOOKUP(G12,klantenlijst,6,0),"") ->  | E13: =IF(F1=R25,R18,R19) -> Vervaldatum | G13: =IF(F1=R25,G10+VLOOKUP(G12,klantenlijst,7,0),data!L8) -> 2019-01-31 | N13: Stap 3
E14: =IF(F1=R25,"","Nieuwe betaaldatum") ->  | G14: =IF(F1=R25,"",G13+15) -> 
A18: HOEVEELHEID | B18: BESCHRIJVING | E18: PRIJS PER EENHEID | F18: BTW-Tarief | G18: =IF(O22=R29,"Korting %","Commissie %") -> Korting % | H18: =IF(O22=R29,"Korting bedrag","Commissie bedrag") -> Korting bedrag | J18: Totaal bedrag excl. | N18: Keuze menu | R18: Vervaldatum
A19: 10 | E19: 15 | F19: 21% | G19: 0.05 | H19: =IF(G19>0%,J19*G19,"") -> 7.5 | I19: =IF(G19>0%,J19-H19,"") -> 142.5 | J19: =IF(A19="","",A19*E19) -> 150 | N19: Factuurdatum | O19: 2019-01-01 | R19: Org. Vervaldatum
A20: 5 | E20: 10 | F20: 9% | H20: =IF(G20>0%,J20*G20,"") ->  | I20: =IF(G20>0%,J20-H20,"") ->  | J20: =IF(A20="","",A20*E20) -> 50 | N20: Factuurnummer | O20: 20190012
A21: 2 | E21: 5 | F21: 9% | H21: =IF(G21>0%,J21*G21,"") ->  | I21: =IF(G21>0%,J21-H21,"") ->  | J21: =IF(A21="","",A21*E21) -> 10 | N21: Debiteurnummer | O21: 2
A22: 2 | E22: 10 | F22: 0% | H22: =IF(G22>0%,J22*G22,"") ->  | I22: =IF(G22>0%,J22-H22,"") ->  | J22: 20 | N22: Korting/ Commissie | O22: KORTING | Q22: Omzet NL
J23: =IF(A23="","",A23*E23) ->  | N23: Soort factuur | O23: Factuur | Q23: Omzet EU
N24: Aanmaningskosten | O24: 17.5 | Q24: Omzet buiten EU
N25: Soort Omzet | O25: =VLOOKUP(G12,klantenlijst,8,0) -> Omzet NL | R25: Factuur
R26: Herinnering
N27: Lijst met gegevens | R27: Aanmaning
N28: BTW-tarief | O28: =IF(O22=R29,R29,R30) -> KORTING
N29: =IF(O25="omzet NL","21%","") -> 21% | O29: 0.05 | R29: KORTING
A30: =IF(F1=R25,"","Opmerking") ->  | G30: SUBTOTAAL | I30: =SUM(J19:J29) -> 230 | N30: =IF(O25="omzet NL","9%","") -> 9% | O30: 0.15 | R30: COMMISSIE
A31: =IF(F1=R25,"",IF(F1=R26,#REF!,#REF!)) ->  | G31: =IF(O22=R29,R29,R30) -> KORTING | I31: =SUM(H19:H29) -> 7.5 | N31: =_xlfn.IFS(O25="omzet eu","",O25="omzet nl","0%",O25="omzet buiten eu","0%") ->  | O31: 0.2
A32: =IF(F1=R25,"",IF(F1=R26,#REF!,#REF!)) ->  | G32: BTW VERLEGD | I32: =SUMIF(F18:F28,"=BTW VERLEGD",J18:J28)-SUMIF(F18:F28,"=BTW VERLEGD",H18:H28) -> 0 | J32: =IF(I32>0,0,"") ->  | N32: =_xlfn.IFS(O25="omzet eu","BTW VERLEGD",O25="omzet nl","BTW VERLEGD",O25="omzet buiten eu","") ->  | O32: 0.3
G33: 0% BTW | I33: =SUMIF(F19:F29,"=0%",J19:J29) -> 20 | J33: =IF(I33>0,0,"") -> 0 | N33: Kopieerbalk | O33: datum | P33: soort | Q33: factuurnummer | R33: klant | S33: totaal excl. BTW | T33: 0 | U33: btw 0% | V33: 0.06 | W33: btw 6 % | X33: 0.21 | Y33: btw 21% | Z33: totaal | AA33: omzet | AB33: Vervaldatum | AC33: betaald
G34: 9% BTW | I34: =SUMIF(F19:F29,"=9%",J19:J29)-SUMIF(F19:F29,"=9%",H19:H29) -> 60 | J34: =I34*0.09 -> 5.4 | N34: 1 Kopieer deze balk | O34: =O19 -> 2019-01-01 | P34: =O23 -> Factuur | Q34: =O20 -> 20190012 | R34: =B10 -> H.G. Alberts | S34: =T34 -> 20 | T34: =IF(I32>0,I32,I33) -> 20 | V34: =I34 -> 60 | X34: =I35 -> 142.5 | AA34: =VLOOKUP(G12,klantenlijst,8,0) -> Omzet NL | AB34: =G13 -> 2019-01-31 | AC34: Openstaand
G35: 21% BTW | I35: =SUMIF(F19:F29,"=21%",J19:J29)-SUMIF(F19:F29,"=21%",H19:H29) -> 142.5 | J35: =I35*0.21 -> 29.925 | N35: 2 Plak deze in Verkoop (gebruik rechtermuisknop Plakken Speciaal, Waarden)
G36: TOTAAL | I36: =I30-I31+J33+J35+J34 -> 257.825
A39: =IF(#REF!<#REF!,#REF!,"") -> 
A40: =#REF! -> 
A41: =IF(#REF!<#REF!,#REF!&" | "&#REF!&" | "&#REF!&"","") -> 
A42: =IF(#REF!<#REF!,#REF!&" "&#REF!&" | "&#REF!&" "&#REF!&" | "&#REF!&" "&#REF!&" | "&#REF!&" "&#REF!&" ","") -> 
A43: =IF(#REF!<#REF!,#REF!,"") -> 
A44: =IF(#REF!<#REF!,#REF!,"") -> 

Sheet data (hidden)
C4: factuurinstelling
C5: 1 | D5: Factuurtekst | E5: tekst1 | F5: waarde1 | G5: tekst2 | H5: waarde2 | I5: tekst4 | J5: waarde4 | K5: tekst5 | L5: waarde5 | M5: tekst6 | N5: waarde6
C6: 1 | D6: FACTUUR | E6: DATUM: | F6: =Verkoopfactuur!O19 -> 2019-01-01 | G6: FACTUURNR.: | H6: =Verkoopfactuur!O20 -> 20190012 | I6: DEBITEUR NR. : | J6: =Verkoopfactuur!O21 -> 2 | K6: VERVALDATUM: | L6: =F6+VLOOKUP(J6,klantenlijst,7) -> 2019-01-31 | M6: ="" ->  | N6: ="" -> 
C7: 2 | D7: KOPIE-FACTUUR | E7: DATUM: | F7: =Verkoopfactuur!O19 -> 2019-01-01 | G7: FACTUURNR.: | H7: =Verkoopfactuur!O20 -> 20190012 | I7: DEBITEUR NR. : | J7: =Verkoopfactuur!O21 -> 2 | K7: VERVALDATUM: | L7: =F7+VLOOKUP(J7,klantenlijst,7) -> 2019-01-31 | M7: ="" ->  | N7: ="" -> 
C8: 3 | D8: HERINNERING | E8: DATUM: | F8: =Verkoopfactuur!O19 -> 2019-01-01 | G8: FACTUURNR.: | H8: =Verkoopfactuur!O20 -> 20190012 | I8: DEBITEUR NR. : | J8: =Verkoopfactuur!O21 -> 2 | K8: ORG. VERVALDATUM: | L8: =F8+VLOOKUP(J8,klantenlijst,7) -> 2019-01-31 | M8: ORG. FACT. DATUM: | N8: =Verkoopfactuur!O19 -> 2019-01-01
C9: 4 | D9: AANMANING | E9: DATUM: | F9: =Verkoopfactuur!O19 -> 2019-01-01 | G9: FACTUURNR.: | H9: =Verkoopfactuur!O20 -> 20190012 | I9: DEBITEUR NR. : | J9: =Verkoopfactuur!O21 -> 2 | K9: ORG. VERVALDATUM: | L9: =F9+VLOOKUP(J9,klantenlijst,7) -> 2019-01-31 | M9: ORG. FACT. DATUM: | N9: =Verkoopfactuur!O19 -> 2019-01-01
C11: factuurtekst
C12: 1 | D12: U wordt verzocht het factuurbedrag bedrag binnen 0 dagen over te maken op Knab rekening nummer NL 91 KNAB 0256 4060 30 t.n.v. AVE Hulsberg o.v.v. factuurnummer 2018001.
C13: 2 | D13: U wordt verzocht het factuurbedrag bedrag binnen 0 dagen over te maken op Knab rekening nummer NL 91 KNAB 0256 4060 30 t.n.v. AVE Hulsberg o.v.v. factuurnummer 2018001.
C14: 3 | D14: ="U wordt verzocht het factuurbedrag bedrag binnen "&L8-N8&" dagen over te maken op "&#REF!&" rekening nummer "&#REF!&" t.n.v. "&#REF!&" "&#REF!&" o.v.v. factuurnummer "&Verkoopfactuur!G11&".Indien u niet binnen deze termijn betaald, zal er € 17,50 administratiekosten in rekening worden gebracht. " -> 
C15: 4 | D15: ="U wordt verzocht het factuurbedrag bedrag binnen "&L8-N8&" dagen over te maken op "&#REF!&" rekening nummer "&#REF!&" t.n.v. "&#REF!&" "&#REF!&" o.v.v. factuurnummer "&Verkoopfactuur!G11&". "&#REF!&" " -> 
C17: factuurtitel
C19: =VLOOKUP(factuurtypen,factuurgegevens,2)&" "&VLOOKUP(factuurtypen,factuurgegevens,6) -> FACTUUR 20190012
C21: =VLOOKUP(factuurtype,factuurinstelling,2)&" "&VLOOKUP(factuurtype,factuurinstelling,6) -> 
C24: factuurtekst
C25: 1 | D25: U wordt verzocht het vermelde bedrag binnen 30 dagen over te maken op bankrekeningnummer NL80INGB00006051477, onder vermelding van het factuurnummer.
